bitfinex-derivatives/quotes_BTCF0:USTF0_20250108
["timestamp","ask_amount","ask_price","bid_price","bid_amount"]
[1736311540940,0.3608,96437.0,96429.0,0.051854]
[1736311541144,0.5,96434.0,96429.0,0.051854]
[1736311541450,0.3608,96437.0,96429.0,0.051854]
[1736311541647,0.3608,96437.0,96421.0,0.051858]
[1736311541846,0.3608,96428.0,96421.0,0.051858]
[1736311542039,0.001,96426.0,96421.0,0.051858]
[1736311542439,0.1213,96425.0,96421.0,0.051858]
[1736311542947,0.6213,96425.0,96421.0,0.052858]
[1736311543246,0.1213,96425.0,96421.0,0.052858]
[1736311543443,0.1213,96425.0,96421.0,0.001]
[1736311543637,0.6213,96425.0,96421.0,0.001]
[1736311543834,0.1213,96425.0,96421.0,0.001]
[1736311544234,0.6213,96425.0,96421.0,0.001]
[1736311544444,0.1213,96425.0,96421.0,0.001]
[1736311544641,0.6213,96425.0,96420.0,0.05299211]
[1736311544952,0.6213,96425.0,96421.0,0.001]
[1736311544953,0.1223,96425.0,96421.0,0.001]
[1736311545149,0.1233,96425.0,96421.0,0.001]
[1736311545348,0.6233,96425.0,96421.0,0.001]
[1736311545552,0.1233,96425.0,96421.0,0.001]
[1736311546049,0.6233,96425.0,96421.0,0.001]
[1736311546442,0.1233,96425.0,96410.0,0.10334515]
[1736311546643,0.3608,96411.0,96410.0,0.10334515]
[1736311546843,0.3608,96411.0,96404.0,0.13702209]
[1736311547349,0.8608,96411.0,96410.0,0.051864]
[1736311547848,0.3608,96411.0,96410.0,0.051864]
[1736311548239,0.8608,96411.0,96410.0,0.051864]
[1736311548646,0.3608,96411.0,96410.0,0.051864]
[1736311548848,0.8618,96411.0,96410.0,0.051864]
[1736311549353,0.8628,96411.0,96410.0,0.051864]
[1736311552952,0.8628,96411.0,96404.0,0.05269944]
[1736311553248,0.8628,96411.0,96401.0,0.10334515]
[1736311553557,0.8628,96411.0,96409.0,0.051864]
[1736311553748,0.3608,96410.0,96409.0,0.051864]
[1736311554347,0.8608,96410.0,96409.0,0.051864]
[1736311554654,0.3608,96410.0,96409.0,0.051864]
[1736311554949,0.8608,96410.0,96409.0,0.051864]
[1736311555254,0.3608,96410.0,96409.0,0.051864]
[1736311555454,0.8608,96410.0,96409.0,0.051864]
[1736311556155,0.8628,96410.0,96409.0,0.051864]
[1736311557455,0.9752,96410.0,96409.0,0.051864]
[1736311558749,0.6144,96410.0,96409.0,0.051864]
[1736311558948,1.336,96410.0,96401.0,0.20708646]
[1736311559155,0.3608,96402.0,96401.0,0.20708646]
[1736311559360,0.3608,96402.0,96401.0,0.10374131]
[1736311559756,0.8608,96402.0,96401.0,0.10374131]
[1736311560155,0.3608,96402.0,96401.0,0.10374131]
[1736311560357,0.8608,96402.0,96401.0,0.10374131]
[1736311560758,0.3608,96402.0,96401.0,0.10374131]
[1736311561061,0.8608,96402.0,96401.0,0.10374131]
[1736311561261,0.3608,96402.0,96401.0,0.10374131]
[1736311561456,0.8618,96402.0,96401.0,0.10374131]
[1736311561850,0.3618,96402.0,96401.0,0.10374131]
[1736311562153,0.8618,96402.0,96401.0,0.10374131]
[1736311562361,0.3628,96402.0,96401.0,0.10374131]
[1736311562857,0.8628,96402.0,96401.0,0.10374131]
[1736311563059,0.3628,96402.0,96401.0,0.10374131]
[1736311563248,0.8628,96402.0,96401.0,0.10374131]
[1736311563451,0.3628,96402.0,96401.0,0.10374131]
[1736311563855,0.8628,96402.0,96401.0,0.10374131]
[1736311564156,0.3628,96402.0,96401.0,0.10374131]
[1736311564355,0.8628,96402.0,96401.0,0.10374131]
[1736311564765,0.3628,96402.0,96401.0,0.10374131]
[1736311564964,0.8618,96402.0,96401.0,0.10374131]
[1736311565363,0.3628,96402.0,96401.0,0.10374131]
[1736311565551,0.3618,96402.0,96401.0,0.10374131]
[1736311565758,0.3628,96402.0,96401.0,0.10374131]
[1736311566156,0.3618,96402.0,96401.0,0.10374131]
[1736311566362,0.3628,96402.0,96401.0,0.10374131]
[1736311567060,0.14586301,96402.0,96401.0,0.10374131]
[1736311568867,0.64586301,96402.0,96401.0,0.10374131]
[1736311569267,0.14586301,96402.0,96401.0,0.10374131]
[1736311569565,0.64586301,96402.0,96401.0,0.10374131]
[1736311569766,0.14586301,96402.0,96401.0,0.10374131]
[1736311570066,0.64586301,96402.0,96401.0,0.10374131]
[1736311571260,0.64486301,96402.0,96401.0,0.10374131]
[1736311571459,0.64586301,96402.0,96401.0,0.10374131]
[1736311571962,0.64586301,96402.0,96390.0,0.10334515]
[1736311572272,0.3608,96391.0,96390.0,0.051875]
[1736311572670,0.3608,96391.0,96384.0,0.051878]
[1736311572871,0.3608,96385.0,96384.0,0.051878]
[1736311573565,0.8608,96385.0,96384.0,0.051878]
[1736311573771,0.3608,96385.0,96384.0,0.051878]
[1736311574170,0.8608,96385.0,96384.0,0.10511107]
[1736311574563,0.3608,96385.0,96384.0,0.10511107]
[1736311574764,0.8608,96385.0,96384.0,0.10511107]
[1736311575071,0.3618,96385.0,96384.0,0.10511107]
[1736311575472,0.8628,96385.0,96384.0,0.10511107]
[1736311575677,0.3628,96385.0,96384.0,0.10511107]
[1736311575971,0.8628,96385.0,96384.0,0.10511107]
[1736311576576,0.3628,96385.0,96384.0,0.10511107]
[1736311577378,0.33146292,96385.0,96384.0,0.10511107]
[1736311578576,0.28146792,96385.0,96384.0,0.10511107]
[1736311578879,0.25665292,96385.0,96384.0,0.10511107]
[1736311579269,0.3137935,96393.0,96384.0,0.10511107]
[1736311579582,0.3608,96403.0,96402.0,0.051868]
[1736311579969,0.35341035,96403.0,96402.0,0.051868]
[1736311580378,0.46669001,96406.0,96405.0,0.051867]
[1736311580566,0.46609,96406.0,96405.0,0.051867]
[1736311580878,0.5,96413.0,96412.0,0.051863]
[1736311582069,0.5,96413.0,96405.0,0.002]
[1736311582371,0.8608,96406.0,96405.0,0.051867]
[1736311582577,0.3608,96406.0,96405.0,0.051867]
[1736311582878,0.8608,96406.0,96405.0,0.051867]
[1736311583078,0.3608,96406.0,96405.0,0.051867]
[1736311583468,0.8608,96406.0,96405.0,0.10267527]
[1736311583877,0.8618,96406.0,96405.0,0.10467527]
[1736311584581,0.8628,96406.0,96405.0,0.05280827]
[1736311585683,0.3628,96406.0,96405.0,0.10467527]
[1736311586071,0.8628,96406.0,96405.0,0.10467527]
[1736311586475,0.3628,96406.0,96405.0,0.10467527]
[1736311586779,0.3618,96406.0,96405.0,0.10367527]
[1736311586977,0.3628,96406.0,96405.0,0.10467527]
[1736311587172,0.8618,96406.0,96405.0,0.10467527]
[1736311587378,0.3628,96406.0,96405.0,0.10467527]
[1736311587574,0.3628,96406.0,96405.0,0.10367527]
[1736311587878,0.3628,96406.0,96405.0,0.10467527]
[1736311588174,0.8628,96406.0,96405.0,0.10467527]
[1736311588379,0.3628,96406.0,96405.0,0.10467527]
[1736311588566,0.002,96406.0,96405.0,0.10467527]
[1736311588770,0.3608,96416.0,96415.0,0.051861]
[1736311589174,0.8608,96416.0,96415.0,0.051861]
[1736311589378,0.3608,96416.0,96415.0,0.051861]
[1736311589679,0.8608,96416.0,96415.0,0.051861]
[1736311589869,0.3608,96416.0,96415.0,0.051861]
[1736311590273,0.8608,96416.0,96415.0,0.051861]
[1736311590478,0.3608,96416.0,96415.0,0.051861]
[1736311590772,0.8608,96416.0,96415.0,0.051861]
[1736311591075,0.3618,96416.0,96415.0,0.052861]
[1736311591271,0.8618,96416.0,96415.0,0.052861]
[1736311591671,0.3628,96416.0,96415.0,0.053861]
[1736311591875,0.8628,96416.0,96415.0,0.053861]
[1736311592076,0.8618,96416.0,96415.0,0.052861]
[1736311592381,0.3628,96416.0,96415.0,0.054861]
[1736311592581,0.8628,96416.0,96415.0,0.1078812]
[1736311592881,0.3628,96416.0,96415.0,0.1078812]
[1736311593080,0.8628,96416.0,96415.0,0.1078812]
[1736311593270,0.8618,96416.0,96415.0,0.1068812]
[1736311593470,0.3628,96416.0,96415.0,0.1078812]
[1736311593674,0.8628,96416.0,96415.0,0.1068812]
[1736311594170,0.3628,96416.0,96415.0,0.1058812]
[1736311594367,0.8628,96416.0,96415.0,0.0550202]
[1736311594570,0.3628,96416.0,96415.0,0.0550202]
[1736311594977,0.8628,96416.0,96398.0,0.05187]
[1736311595181,0.3608,96399.0,96398.0,0.05187]
[1736311595477,0.32313389,96407.0,96406.0,0.051866]
[1736311596976,0.82313389,96407.0,96406.0,0.051866]
[1736311597177,0.32413389,96407.0,96406.0,0.052866]
[1736311597378,0.82513389,96407.0,96406.0,0.053866]
[1736311597689,0.32513389,96407.0,96406.0,0.053866]
[1736311597979,0.001,96407.0,96406.0,0.10580216]
[1736311598180,0.31417597,96415.0,96414.0,0.051862]
[1736311598476,0.08691772,96417.0,96416.0,0.051861]
[1736311598778,0.50052001,96425.0,96424.0,0.051856]
[1736311598987,0.5,96425.0,96424.0,0.051856]
[1736311600278,0.5,96425.0,96424.0,0.052856]
[1736311600676,0.299345,96425.0,96424.0,0.052856]
[1736311600879,0.1083,96434.0,96433.0,0.051852]
[1736311601079,0.00060001,96440.0,96439.0,0.051848]
[1736311601278,0.00060001,96440.0,96433.0,0.3608]
[1736311601279,0.00052001,96443.0,96442.0,0.051847]
[1736311601479,0.3608,96453.0,96441.0,0.3608]
[1736311601680,0.3608,96465.0,96462.0,0.051836]
[1736311601681,0.1095,96464.0,96462.0,0.051836]
[1736311602079,0.6095,96464.0,96462.0,0.051836]
[1736311602480,0.1095,96464.0,96462.0,0.051836]
[1736311602784,0.6095,96464.0,96462.0,0.051836]
[1736311604188,0.113,96463.0,96462.0,0.052836]
[1736311604884,0.613,96463.0,96462.0,0.052836]
[1736311605078,0.5,96454.0,96453.0,0.10334515]
[1736311605275,0.8608,96454.0,96444.0,0.10334515]
[1736311605475,0.3608,96445.0,96444.0,0.15519115]
[1736311605676,0.3608,96445.0,96444.0,0.051846]
[1736311607183,0.3608,96445.0,96444.0,0.053846]
[1736311607387,0.3618,96445.0,96444.0,0.062846]
[1736311607882,0.3618,96445.0,96444.0,0.060846]
[1736311608081,0.3628,96445.0,96444.0,0.062846]
[1736311608483,0.3628,96445.0,96444.0,0.11372294]
[1736311608881,0.3538342,96445.0,96444.0,0.11372294]
[1736311612789,0.5,96443.0,96439.0,0.051848]
[1736311613096,0.34004,96440.0,96439.0,0.051848]
[1736311613885,0.84004,96440.0,96439.0,0.062848]
[1736311614290,0.34004,96440.0,96439.0,0.062848]
[1736311614489,0.84104,96440.0,96439.0,0.062848]
[1736311614792,0.34204,96440.0,96439.0,0.011]
[1736311614998,0.84204,96440.0,96439.0,0.011]
[1736311615392,0.34204,96440.0,96439.0,0.011]
[1736311615699,0.84204,96440.0,96439.0,0.011]
[1736311615900,0.34204,96440.0,96439.0,0.011]
[1736311616091,0.84204,96440.0,96439.0,0.002]
[1736311616292,0.84204,96440.0,96436.0,0.05185]
[1736311616492,0.34204,96440.0,96436.0,0.05185]
[1736311616693,0.84204,96440.0,96436.0,0.05185]
[1736311617096,0.34204,96440.0,96436.0,0.05185]
[1736311617403,0.84204,96440.0,96436.0,0.05185]
[1736311617605,0.34204,96440.0,96436.0,0.05185]
[1736311617898,0.84204,96440.0,96436.0,0.05185]
[1736311618291,0.34204,96440.0,96436.0,0.05185]
[1736311618492,0.84204,96440.0,96436.0,0.05185]
[1736311618704,0.34204,96440.0,96436.0,0.05185]
[1736311619095,0.84204,96440.0,96436.0,0.05285]
[1736311619395,0.34204,96440.0,96436.0,0.05285]
[1736311619593,0.84204,96440.0,96436.0,0.05285]
[1736311619906,0.34204,96440.0,96436.0,0.05285]
[1736311620199,0.84204,96440.0,96436.0,0.05285]
[1736311620503,0.34204,96440.0,96436.0,0.05285]
[1736311620900,0.84204,96440.0,96436.0,0.05285]
[1736311621094,0.34204,96440.0,96436.0,0.05285]
[1736311621296,0.84204,96440.0,96436.0,0.05285]
[1736311622300,0.84104,96440.0,96436.0,0.05185]
[1736311622605,0.84204,96440.0,96436.0,0.05585]
[1736311623010,0.84104,96440.0,96436.0,0.05285]
[1736311623198,0.84204,96440.0,96436.0,0.05585]
[1736311626197,0.84204,96440.0,96438.0,0.051849]
[1736311626394,0.34204,96440.0,96438.0,0.051849]
[1736311627501,0.34204,96440.0,96438.0,0.052849]
[1736311627808,0.34104,96440.0,96438.0,0.052849]
[1736311628003,0.34204,96440.0,96438.0,0.055849]
[1736311629300,0.33754096,96440.0,96438.0,0.055849]
[1736311629507,0.33319818,96440.0,96438.0,0.055849]
[1736311630007,0.27901819,96440.0,96438.0,0.055849]
[1736311630309,0.10851762,96444.0,96438.0,0.055849]
[1736311630501,0.36132001,96453.0,96443.0,0.051846]
[1736311631002,0.1199,96444.0,96443.0,0.051846]
[1736311631699,0.6199,96444.0,96443.0,0.051846]
[1736311632006,0.1199,96444.0,96443.0,0.051846]
[1736311632206,0.6199,96444.0,96443.0,0.051846]
[1736311632600,0.1209,96444.0,96443.0,0.051846]
[1736311632801,0.6209,96444.0,96443.0,0.051846]
[1736311633107,0.1209,96444.0,96443.0,0.053846]
[1736311633610,0.6199,96444.0,96443.0,0.053846]
[1736311633911,0.1199,96444.0,96443.0,0.054846]
[1736311634111,0.09914,96444.0,96427.0,0.46528]
[1736311634312,0.60014,96444.0,96443.0,0.005]
[1736311634509,1.32274,96444.0,96443.0,0.007]
[1736311634708,0.82274,96444.0,96443.0,0.007]
[1736311634908,1.32274,96444.0,96443.0,0.058846]
[1736311635111,1.43438995,96444.0,96443.0,0.058846]
[1736311635821,1.43438995,96444.0,96443.0,0.053846]
[1736311635822,1.43338995,96444.0,96443.0,0.053846]
[1736311636012,1.43438995,96444.0,96443.0,0.04996141]
[1736311636709,0.93438995,96444.0,96443.0,0.04996141]
[1736311637208,0.59281683,96444.0,96443.0,0.04996141]
[1736311637415,0.59281683,96444.0,96443.0,0.10136052]
[1736311637611,0.59181683,96444.0,96443.0,0.04996141]
[1736311637806,0.59281683,96444.0,96443.0,0.04996141]
[1736311638414,0.48116688,96444.0,96443.0,0.04996141]
[1736311638805,0.48016688,96444.0,96443.0,0.04796141]
[1736311639009,0.48116688,96444.0,96443.0,0.04996141]
[1736311639513,0.59281683,96444.0,96443.0,0.04996141]
[1736311641214,1.09281683,96444.0,96443.0,0.04996141]
[1736311642021,1.09281683,96444.0,96434.0,0.15508895]
[1736311642022,1.09281683,96444.0,96434.0,0.0517438]
[1736311642210,0.3608,96435.0,96432.0,0.051852]
[1736311642410,0.2328,96434.0,96432.0,0.051852]
[1736311642921,0.84444995,96434.0,96420.0,0.10334515]
[1736311643113,0.3608,96421.0,96420.0,0.15520415]
[1736311643419,0.3608,96421.0,96420.0,0.051859]
[1736311644811,0.3608,96421.0,96416.0,0.051861]
[1736311645011,0.3608,96417.0,96416.0,0.051861]
[1736311645824,0.8608,96417.0,96416.0,0.051861]
[1736311646022,0.3608,96417.0,96416.0,0.051861]
[1736311646514,0.3618,96417.0,96416.0,0.051861]
[1736311646915,0.3608,96417.0,96416.0,0.051861]
[1736311647117,0.3618,96417.0,96416.0,0.051861]
[1736311647610,0.3628,96417.0,96416.0,0.051861]
[1736311648617,0.3628,96417.0,96416.0,0.052861]
[1736311652230,0.3628,96417.0,96416.0,0.001]
[1736311653415,0.3608,96417.0,96416.0,0.001]
[1736311653720,0.3628,96417.0,96416.0,0.001]
[1736311656125,0.3618,96417.0,96415.0,0.051861]
[1736311656326,0.1104,96416.0,96415.0,0.051861]
[1736311656831,0.1104,96416.0,96411.0,0.5173175]
[1736311657033,0.1142,96415.0,96411.0,0.5166775]
[1736311657228,0.1142,96415.0,96413.0,0.051862]
[1736311659417,0.1152,96415.0,96411.0,0.0520775]
[1736311659625,0.1162,96415.0,96405.0,0.051866]
[1736311659825,0.3608,96406.0,96396.0,0.051871]
[1736311660024,0.3608,96406.0,96397.0,0.051871]
[1736311660229,0.3608,96406.0,96390.0,0.10334515]
[1736311660230,0.3608,96406.0,96396.0,0.051871]
[1736311660426,0.3608,96397.0,96391.0,0.051874]
[1736311660642,0.3608,96392.0,96391.0,0.051874]
[1736311661530,0.3608,96392.0,96391.0,0.03635209]
[1736311662333,0.3618,96392.0,96391.0,0.03635209]
[1736311662728,0.47344995,96392.0,96391.0,0.03635209]
[1736311662929,0.47444995,96392.0,96391.0,0.02758576]
[1736311663534,0.3628,96392.0,96391.0,0.02758576]
[1736311665030,0.34204,96392.0,96375.0,0.46544]
[1736311665230,0.3608,96376.0,96375.0,0.051883]
[1736311665640,0.35924469,96376.0,96375.0,0.351883]
[1736311666029,0.34104,96392.0,96375.0,0.351883]
[1736311666236,0.30387656,96381.0,96380.0,0.05188]
[1736311666634,0.30387656,96381.0,96380.0,0.35188]
[1736311667237,0.34104,96392.0,96391.0,0.051874]
[1736311667938,0.34004,96392.0,96391.0,0.051874]
[1736311668737,0.34104,96392.0,96391.0,0.051874]
[1736311669636,0.34204,96392.0,96391.0,0.051874]
[1736311670248,0.0036,96391.0,96324.0,0.11135527]
[1736311670549,0.0036,96390.0,96306.0,0.1039]
[1736311670749,1.14204,96392.0,96236.0,0.051957]
[1736311670750,0.3608,96256.0,96236.0,0.051957]
[1736311671046,0.34004,96237.0,96226.0,0.051963]
[1736311671345,0.34004,96237.0,96209.0,0.16219728]
[1736311671346,0.7216,96227.0,96209.0,0.00052]
[1736311671648,0.7216,96210.0,96209.0,0.00052]
[1736311671850,0.7216,96210.0,96201.0,0.05234741]
[1736311672140,0.1797,96202.0,96200.0,0.20334515]
[1736311672347,0.3608,96201.0,96200.0,0.1]
[1736311672550,0.3608,96210.0,96200.0,0.15115781]
[1736311672551,1.13672633,96210.0,96200.0,0.15115781]
[1736311672741,0.52193633,96210.0,96209.0,0.3608]
[1736311672936,0.3608,96243.0,96209.0,1.8608]
[1736311673136,0.3608,96235.0,96214.0,0.14226226]
[1736311673332,0.3608,96250.0,96225.0,0.15564058]
[1736311673538,0.1215,96269.0,96220.0,0.15564058]
[1736311673539,0.2208,96244.0,96220.0,0.15564058]
[1736311673744,0.5,96235.0,96234.0,0.15564058]
[1736311673937,0.5,96234.0,96226.0,0.00831]
[1736311674140,0.5,96236.0,96226.0,0.00831]
[1736311674548,0.8608,96236.0,96227.0,1.5]
[1736311674940,0.3608,96266.0,96235.0,0.36076]
[1736311675250,0.3608,96266.0,96244.0,0.3608]
[1736311675251,0.5,96246.0,96244.0,0.3608]
[1736311675441,0.5,96256.0,96244.0,0.77192036]
[1736311675841,0.3608,96258.0,96244.0,0.77192036]
[1736311676051,1.01748021,96245.0,96244.0,0.46568]
[1736311676245,1.01748021,96245.0,96244.0,0.46564]
[1736311676548,1.01748021,96245.0,96244.0,0.46664]
[1736311676747,1.51748021,96245.0,96244.0,0.46764]
[1736311676950,1.51748021,96245.0,96244.0,0.46664]
[1736311677151,1.51748021,96245.0,96244.0,0.4676]
[1736311677450,1.01748021,96245.0,96244.0,0.4676]
[1736311677648,1.01748021,96245.0,96244.0,1.96756]
[1736311678144,1.3985167,96245.0,96244.0,1.96756]
[1736311678341,1.3995167,96245.0,96244.0,1.96656]
[1736311678537,1.4005167,96245.0,96244.0,0.39967947]
[1736311678842,2.2613167,96245.0,96244.0,0.39967947]
[1736311679051,1.35305846,96245.0,96244.0,2.26047947]
[1736311679241,1.35305846,96245.0,96244.0,1.89967947]
[1736311679643,0.85305846,96245.0,96244.0,2.26047947]
[1736311679841,0.85205846,96245.0,96244.0,2.26047947]
[1736311680047,0.85205846,96245.0,96244.0,2.25947947]
[1736311680250,0.38303649,96245.0,96244.0,2.26047947]
[1736311680645,0.38303649,96245.0,96244.0,0.76047947]
[1736311681448,0.24374226,96245.0,96244.0,0.76047947]
[1736311681646,0.24274226,96245.0,96244.0,0.7434035]
[1736311681955,0.24374226,96245.0,96244.0,0.7444035]
[1736311682261,0.24274226,96245.0,96244.0,0.7434035]
[1736311682553,0.24374226,96245.0,96244.0,0.7444035]
[1736311682848,0.24274226,96245.0,96244.0,0.7434035]
[1736311683049,0.43772584,96245.0,96244.0,0.7444035]
[1736311683255,0.43872584,96245.0,96244.0,0.22419248]
[1736311683641,0.43872584,96245.0,96244.0,0.58499248]
[1736311684654,0.43772584,96245.0,96244.0,0.58399248]
[1736311684946,0.43872584,96245.0,96244.0,0.55158786]
[1736311685246,0.43872584,96245.0,96244.0,0.90354086]
[1736311685846,0.55838873,96245.0,96244.0,0.88273278]
[1736311686245,0.44138873,96245.0,96244.0,0.88173278]
[1736311686449,0.44138873,96245.0,96244.0,0.88273278]
[1736311686642,0.06035224,96245.0,96244.0,0.41673278]
[1736311686848,0.06035224,96245.0,96244.0,0.06477978]
[1736311687151,0.06035224,96245.0,96244.0,0.001]
[1736311687853,0.05935224,96245.0,96244.0,0.001]
[1736311688042,0.06035224,96245.0,96244.0,0.017]
[1736311688243,0.06035224,96245.0,96243.0,0.56322633]
[1736311688751,0.2719849,96246.0,96243.0,0.56322633]
[1736311688752,0.12042955,96246.0,96245.0,0.051953]
[1736311688952,0.32404605,96253.0,96252.0,0.051949]
[1736311689258,0.68484605,96253.0,96252.0,0.051949]
[1736311689752,1.18484605,96253.0,96252.0,0.051949]
[1736311690347,0.68484605,96253.0,96252.0,0.051949]
[1736311690754,0.68484605,96253.0,96248.0,0.46608]
[1736311690946,0.68484605,96253.0,96252.0,0.051949]
[1736311691345,0.68484605,96253.0,96248.0,0.20615246]
[1736311691551,0.68584605,96253.0,96248.0,0.20615246]
[1736311691848,0.32604605,96253.0,96252.0,0.051949]
[1736311692452,0.32504605,96253.0,96252.0,0.051949]
[1736311692646,0.32604605,96253.0,96252.0,0.051949]
[1736311693054,0.11482205,96253.0,96252.0,0.351949]
[1736311693249,0.11482205,96253.0,96252.0,0.051949]
[1736311693755,5e-08,96253.0,96252.0,0.051949]
[1736311694151,0.16068445,96258.0,96257.0,0.051946]
[1736311694352,0.33225411,96270.0,96269.0,0.05194]
[1736311694561,0.33225411,96270.0,96269.0,0.41274]
[1736311694949,0.09250984,96270.0,96269.0,0.71274]
[1736311695249,0.3608,96289.0,96269.0,0.30155801]
[1736311695452,0.3608,96289.0,96288.0,0.05193]
[1736311697045,0.3608,96289.0,96288.0,0.1050465]
[1736311697658,0.47341287,96289.0,96288.0,0.1050465]
[1736311697847,0.47441287,96289.0,96288.0,0.1060465]
[1736311698252,0.47541287,96289.0,96288.0,0.1090465]
[1736311699150,0.60669912,96289.0,96285.0,0.26368982]
[1736311699353,0.60469912,96289.0,96288.0,0.05193]
[1736311699657,0.60669912,96289.0,96288.0,0.05593]
[1736311700356,0.70629566,96289.0,96288.0,0.05593]
[1736311700551,0.70629566,96289.0,96288.0,0.466]
[1736311700950,0.70629566,96289.0,96288.0,0.51793]
[1736311701750,0.70629566,96289.0,96288.0,0.51893]
[1736311704351,0.34549566,96289.0,96288.0,0.51893]
[1736311704961,0.39603833,96289.0,96288.0,0.51893]
[1736311706256,0.26475208,96289.0,96288.0,0.51893]
[1736311706461,0.26475208,96289.0,96288.0,0.14300752]
[1736311707767,0.25761563,96289.0,96288.0,0.14300752]
[1736311708159,0.20707296,96289.0,96288.0,0.14300752]
[1736311708360,0.19878296,96289.0,96288.0,0.14300752]
[1736311709059,0.19137829,96289.0,96288.0,0.14300752]
[1736311709259,0.35251884,96292.0,96291.0,0.051928]
[1736311709566,0.3608,96303.0,96288.0,0.44300752]
[1736311709567,0.21373934,96297.0,96296.0,0.051925]
[1736311709756,0.04692786,96297.0,96296.0,0.051925]
[1736311710065,0.26225268,96307.0,96306.0,0.05192]
[1736311710269,0.13188268,96307.0,96306.0,0.05192]
[1736311710564,0.34448268,96313.0,96312.0,0.051917]
[1736311711165,0.00052001,96316.0,96315.0,0.051915]
[1736311711753,0.10292001,96317.0,96315.0,0.051915]
[1736311711956,0.00052001,96329.0,96328.0,0.051908]
[1736311712161,0.6989615,96347.0,96328.0,0.3608]
[1736311712162,0.1268,96346.0,96328.0,0.3608]
[1736311712359,0.6989615,96347.0,96328.0,0.3608]
[1736311712360,0.6989615,96347.0,96345.0,0.051899]
[1736311712560,0.5,96360.0,96359.0,0.051891]
[1736311712768,0.5,96380.0,96357.0,0.3608]
[1736311712958,0.39537842,96386.0,96379.0,0.051881]
[1736311713158,0.39537842,96386.0,96370.0,0.10365052]
[1736311713159,0.5,96383.0,96382.0,0.051879]
[1736311713459,0.3608,96393.0,96390.0,0.051874]
[1736311713664,0.3608,96406.0,96390.0,0.051874]
[1736311713862,0.78853749,96398.0,96390.0,0.051874]
[1736311714169,0.78853749,96398.0,96370.0,0.0015562]
[1736311714170,0.3608,96406.0,96399.0,0.05187]
[1736311714371,0.07560513,96400.0,96399.0,0.05187]
[1736311714882,0.05360513,96400.0,96399.0,0.05187]
[1736311715370,0.05460513,96400.0,96399.0,0.05787]
[1736311715760,0.3608,96416.0,96399.0,0.3668]
[1736311715964,0.39537842,96416.0,96404.0,0.051867]
[1736311716160,0.3608,96405.0,96390.0,0.16416117]
[1736311716360,0.3608,96395.0,96390.0,0.15516117]
[1736311716665,0.8608,96395.0,96390.0,0.15516117]
[1736311716862,0.39537842,96395.0,96390.0,0.15516117]
[1736311717066,0.001,96400.0,96390.0,0.15516117]
[1736311717265,0.002,96400.0,96399.0,0.06087]
[1736311717461,0.001,96400.0,96399.0,0.06087]
[1736311717859,0.03457842,96400.0,96390.0,0.16216117]
[1736311718166,0.3608,96393.0,96390.0,0.17116117]
[1736311718364,0.37457842,96393.0,96390.0,0.17116117]
[1736311718562,0.34,96393.0,96390.0,0.17116117]
[1736311718864,0.34,96393.0,96390.0,0.15516117]
[1736311719071,0.001,96400.0,96390.0,0.15516117]
[1736311719371,0.001,96400.0,96399.0,0.05187]
[1736311720267,0.3608,96409.0,96394.0,0.3608]
[1736311720463,0.3608,96409.0,96408.0,0.051865]
[1736311720671,0.3608,96409.0,96400.0,0.051869]
[1736311720864,0.3608,96401.0,96400.0,0.051869]
[1736311721563,0.5,96418.0,96399.0,0.011]
[1736311721760,0.5,96410.0,96409.0,0.051864]
[1736311721969,0.5,96415.0,96412.0,0.051862]
[1736311722471,0.03457842,96415.0,96412.0,0.051862]
[1736311722666,0.5,96405.0,96400.0,0.054869]
[1736311722866,0.3608,96401.0,96398.0,0.05225931]
[1736311723075,0.3608,96401.0,96394.0,0.051873]
[1736311723267,0.75617842,96401.0,96394.0,0.051873]
[1736311723666,0.75717842,96401.0,96400.0,0.001]
[1736311723866,0.5,96391.0,96379.0,0.00155597]
[1736311724173,0.3608,96380.0,96370.0,0.051885]
[1736311724473,0.3608,96380.0,96363.0,0.37017]
[1736311724474,0.3608,96371.0,96363.0,0.36187]
[1736311724662,0.3608,96371.0,96366.0,0.051888]
[1736311724865,0.5,96370.0,96363.0,0.00107]
[1736311725065,0.3608,96364.0,96360.0,0.051891]
[1736311725468,0.3608,96364.0,96359.0,0.46616]
[1736311725781,0.3608,96364.0,96362.0,0.05189]
[1736311726073,0.00160001,96380.0,96379.0,0.051881]
[1736311726273,0.001,96380.0,96379.0,0.051881]
[1736311727679,0.3608,96382.0,96381.0,0.05188]
[1736311728074,0.50056001,96388.0,96371.0,0.05224538]
[1736311728368,0.1302,96390.0,96389.0,0.051875]
[1736311728768,0.3608,96391.0,96389.0,0.051875]
[1736311729969,0.3608,96402.0,96397.0,0.051871]
[1736311731075,0.001,96391.0,96389.0,0.008]
[1736311731274,0.3608,96390.0,96389.0,0.008]
[1736311731872,0.3608,96390.0,96384.0,0.051878]
[1736311732088,0.3608,96390.0,96379.0,0.05254072]
[1736311732089,0.3608,96390.0,96376.0,0.051882]
[1736311732378,0.5,96380.0,96376.0,0.051882]
[1736311732982,0.5,96380.0,96379.0,0.051881]
[1736311733167,0.3608,96381.0,96379.0,0.051881]
[1736311733776,0.5,96389.0,96379.0,0.10483208]
[1736311733986,0.3628,96390.0,96388.0,0.051876]
[1736311734178,0.3618,96390.0,96388.0,0.051876]
[1736311734479,0.3608,96390.0,96388.0,0.051876]
[1736311735181,0.3608,96404.0,96402.0,0.051868]
[1736311735477,0.8608,96404.0,96402.0,0.051868]
[1736311736984,0.8638,96404.0,96402.0,0.051868]
[1736311737482,0.8678,96404.0,96402.0,0.051868]
[1736311738074,0.3678,96404.0,96402.0,0.051868]
[1736311738479,0.3648,96404.0,96402.0,0.051868]
[1736311738691,0.005,96404.0,96402.0,0.051868]
[1736311739485,0.002,96404.0,96402.0,0.059868]
[1736311739785,0.09557502,96413.0,96403.0,0.3608]